bitfinex/quotes_SOLUSD_20241222
["timestamp","ask_amount","ask_price","bid_price","bid_amount"]
[1734896936716,2.4327,179.0,178.94,43.90829779]
[1734896936901,2.4327,179.0,178.95,43.90829779]
[1734896937594,2.4327,179.0,178.89,8.22549]
[1734896937804,6.3437,179.01,178.95,43.90829779]
[1734896938118,2.4327,179.04,178.97,43.90829779]
[1734896938925,2.4327,179.04,178.99,43.90829779]
[1734896939415,46.34099779,179.04,178.98,0.12549]
[1734896940215,46.34099779,179.04,178.97,43.90829779]
[1734896940399,43.90829779,179.03,178.92,8.1]
[1734896940589,43.90829779,179.03,178.96,43.90829779]
[1734896941712,43.90829779,179.02,178.95,43.90829779]
[1734896942087,63.90829779,179.03,178.92,8.1]
[1734896942294,43.90829779,179.01,178.93,43.90829779]
[1734896942623,43.90829779,178.99,178.91,43.90829779]
[1734896942997,43.90829779,178.97,178.89,43.90829779]
[1734896943201,43.90829779,178.98,178.91,43.90829779]
[1734896944192,63.90829779,178.99,178.91,43.90829779]
[1734896944410,63.90829779,178.99,178.92,43.90829779]
[1734896944908,20.0,178.98,178.94,43.90829779]
[1734896945113,20.0,178.99,178.94,43.90829779]
[1734896945310,20.0,178.99,178.93,43.90829779]
[1734896945623,20.0,178.99,178.89,43.90829779]
[1734896945624,43.90829779,178.97,178.89,43.90829779]
[1734896946000,43.90829779,178.93,178.86,43.90829779]
[1734896946197,43.90829779,178.92,178.85,43.90829779]
[1734896947024,43.90829779,178.93,178.86,43.90829779]
[1734896947329,63.90829779,178.88,178.82,8.1]
[1734896947508,63.90829779,178.88,178.8,43.90829779]
[1734896947720,63.90829779,178.88,178.81,43.90829779]
[1734896947904,20.0,178.88,178.82,43.90829779]
[1734896948229,8.6571,178.95,178.87,43.90829779]
[1734896948409,43.90829779,178.98,178.9,43.90829779]
[1734896949125,43.90829779,178.95,178.87,43.90829779]
[1734896949341,43.90829779,178.94,178.87,43.90829779]
[1734896949702,43.90829779,178.94,178.87,0.12549]
[1734896949933,43.90829779,178.92,178.84,43.90829779]
[1734896950130,43.90829779,178.93,178.86,43.90829779]
[1734896950339,43.90829779,178.94,178.86,43.90829779]
[1734896951336,20.0,178.91,178.85,43.90829779]
[1734896951517,43.90829779,178.9,178.82,43.90829779]
[1734896951911,43.90829779,178.91,178.83,43.90829779]
[1734896952448,43.90829779,178.89,178.81,43.90829779]
[1734896952633,43.90829779,178.87,178.79,43.90829779]
[1734896953138,43.90829779,178.89,178.81,43.90829779]
[1734896953639,20.0,178.86,178.81,43.90829779]
[1734896953843,43.90829779,178.89,178.78,0.669332]
[1734896953844,43.90829779,178.89,178.83,43.90829779]
[1734896954745,43.90829779,178.94,178.86,43.90829779]
[1734896954924,66.95429779,178.95,178.87,43.90829779]
[1734896956248,52.98399779,178.95,178.88,44.03378779]
[1734896956419,9.0757,178.95,178.89,43.90829779]
[1734896958057,52.98399779,178.95,178.88,43.90829779]
[1734896958225,43.90829779,178.92,178.84,44.03378779]
[1734896958541,43.90829779,178.9,178.83,43.90829779]
[1734896958720,43.90829779,178.91,178.83,43.90829779]
[1734896959437,43.90829779,178.91,178.84,43.90829779]
[1734896959638,13.9711,178.94,178.85,43.90829779]
[1734896959639,43.90829779,178.92,178.85,43.90829779]
[1734896959845,43.90829779,178.92,178.84,43.90829779]
[1734896960258,43.90829779,178.92,178.79,8.22549]
[1734896960259,43.90829779,178.91,178.83,43.90829779]
[1734896960841,9.0757,178.95,178.87,43.90829779]
[1734896961145,43.90829779,178.93,178.86,43.90829779]
[1734896961451,43.90829779,178.92,178.84,43.90829779]
[1734896961831,43.90829779,178.93,178.85,43.90829779]
[1734896962147,20.0,178.9,178.85,43.90829779]
[1734896962536,43.90829779,178.94,178.87,43.90829779]
[1734896962848,60.28639779,178.99,178.91,43.90829779]
[1734896964247,43.90829779,178.98,178.9,43.90829779]
[1734896964440,60.28639779,178.99,178.91,43.90829779]
[1734896964842,46.50219779,179.03,178.96,43.90829779]
[1734896965144,43.90829779,179.04,178.97,43.90829779]
[1734896965348,13.9627,179.05,178.99,43.90829779]
[1734896965545,43.90829779,179.03,178.93,0.12549]
[1734896965734,13.9627,179.05,178.93,0.12549]
[1734896966430,20.0,179.02,178.93,0.12549]
[1734896966849,43.90829779,179.01,178.94,43.90829779]
[1734896967049,43.90829779,179.01,178.93,43.90829779]
[1734896967229,43.90829779,179.0,178.93,43.90829779]
[1734896967432,43.90829779,178.99,178.92,43.90829779]
[1734896967750,43.90829779,178.99,178.88,0.12549]
[1734896967751,43.90829779,178.99,178.91,43.90829779]
[1734896967930,43.90829779,178.96,178.89,43.90829779]
[1734896968335,6.1658,178.98,178.92,43.90829779]
[1734896968540,2.5939,178.99,178.93,43.90829779]
[1734896968730,2.5939,178.99,178.92,43.90829779]
[1734896968925,43.90829779,178.98,178.91,43.90829779]
[1734896969132,43.90829779,178.95,178.87,43.90829779]
[1734896969328,43.90829779,178.9,178.78,8.769332]
[1734896969534,43.90829779,178.88,178.81,43.90829779]
[1734896969734,43.90829779,178.89,178.81,43.90829779]
[1734896969941,43.90829779,178.89,178.82,43.90829779]
[1734896970549,43.90829779,178.9,178.82,43.90829779]
[1734896970748,43.90829779,178.9,178.83,43.90829779]
[1734896970955,43.90829779,178.92,178.85,43.90829779]
[1734896971334,50.07409779,178.93,178.86,43.90829779]
[1734896971557,46.50219779,178.99,178.91,43.90829779]
[1734896971863,43.90829779,178.92,178.78,8.769332]
[1734896972034,43.90829779,178.9,178.81,43.90829779]
[1734896972234,43.90829779,178.9,178.83,43.90829779]
[1734896972636,43.90829779,178.92,178.83,43.90829779]
[1734896972832,43.90829779,178.92,178.85,43.90829779]
[1734896972833,20.0,178.89,178.85,43.90829779]
[1734896973162,63.90829779,178.9,178.83,43.90829779]
[1734896973845,20.0,178.9,178.83,43.90829779]
[1734896974158,43.90829779,178.94,178.87,43.90829779]
[1734896974537,43.90829779,178.94,178.86,43.90829779]
[1734896974736,43.90829779,178.94,178.83,43.90829779]
[1734896974737,43.90829779,178.96,178.88,43.90829779]
[1734896974938,43.90829779,178.92,178.81,0.83846471]
[1734896975256,43.90829779,178.92,178.85,43.90829779]
[1734896975450,43.90829779,178.94,178.85,43.90829779]
[1734896975651,43.90829779,178.94,178.79,8.1]
[1734896975652,20.0,178.91,178.87,43.90829779]
[1734896976241,20.0,178.91,178.85,43.90829779]
[1734896976761,43.90829779,178.96,178.89,43.90829779]
[1734896976943,20.0,178.95,178.89,43.90829779]
[1734896977143,57.87679779,178.98,178.89,43.90829779]
[1734896978262,20.0,178.95,178.89,43.90829779]
[1734896980137,20.0,178.93,178.87,43.90829779]
[1734896980340,20.0,178.91,178.85,43.90829779]
[1734896980765,20.0,178.91,178.87,43.90829779]
[1734896981861,43.90829779,178.96,178.89,43.90829779]
[1734896982066,63.90829779,178.96,178.89,43.90829779]
[1734896982266,43.90829779,178.97,178.89,43.90829779]
[1734896982458,16.5618,178.99,178.9,43.90829779]
[1734896982459,43.90829779,178.98,178.9,43.90829779]
[1734896982868,43.90829779,178.97,178.89,43.90829779]
[1734896983261,43.90829779,178.94,178.86,6.6592]
[1734896983467,43.90829779,178.96,178.88,43.90829779]
[1734896983771,43.90829779,178.97,178.9,43.90829779]
[1734896984457,43.90829779,179.0,178.93,0.12549]
[1734896984851,43.90829779,179.0,178.93,44.03378779]
[1734896985050,43.90829779,179.0,178.89,20.0]
[1734896985051,43.90829779,178.99,178.91,43.90829779]
[1734896985252,13.9647,179.03,178.9,43.90829779]
[1734896985253,43.90829779,178.98,178.9,43.90829779]
[1734896985456,43.90829779,178.97,178.9,43.90829779]
[1734896985661,43.90829779,178.98,178.91,0.12549]
[1734896986066,43.90829779,178.99,178.91,44.03378779]
[1734896986269,43.90829779,178.98,178.91,43.90829779]
[1734896986462,43.90829779,178.98,178.91,0.12549]
[1734896986843,43.90829779,178.98,178.91,44.03378779]
[1734896987183,43.90829779,178.98,178.91,43.90829779]
[1734896987391,13.9664,179.0,178.86,50.56749779]
[1734896987392,20.0,178.93,178.86,50.56749779]
[1734896987683,20.0,178.91,178.86,43.90829779]
[1734896988174,43.90829779,178.96,178.88,43.90829779]
[1734896988474,20.0,178.95,178.91,43.90829779]
[1734896988850,57.87469779,179.0,178.92,43.90829779]
[1734896989076,43.90829779,178.99,178.92,43.90829779]
[1734896989249,13.9664,179.0,178.9,0.12549]
[1734896989250,43.90829779,178.97,178.9,0.12549]
[1734896989450,43.90829779,178.96,178.89,43.90829779]
[1734896992471,43.90829779,178.98,178.9,0.12549]
[1734896992677,43.90829779,178.98,178.91,43.90829779]
[1734896994183,43.90829779,178.98,178.89,43.90829779]
[1734896994394,20.0,178.95,178.89,43.90829779]
[1734896998181,20.0,178.95,178.88,27.03026553]
[1734897000057,20.0,178.93,178.88,27.03026553]
[1734897000559,6.6252,179.05,178.92,27.03026553]
[1734897000764,27.03026553,179.02,178.94,27.03026553]
[1734897000967,27.03026553,179.0,178.92,27.03026553]
[1734897001161,27.03026553,178.98,178.84,22.0788]
[1734897001401,13.9645,179.03,178.88,27.03026553]
[1734897001402,27.03026553,178.96,178.88,27.03026553]
[1734897001603,27.03026553,178.96,178.89,0.12549]
[1734897002261,27.03026553,178.98,178.9,27.03026553]
[1734897002456,27.03026553,179.0,178.92,27.03026553]
[1734897003069,27.03026553,179.0,178.94,27.03026553]
[1734897003290,29.42236553,179.04,178.96,27.03026553]
[1734897003459,27.03026553,179.04,178.96,27.03026553]
[1734897004282,6.6252,179.05,178.97,27.03026553]
[1734897004283,27.03026553,179.05,178.97,27.03026553]
[1734897004487,27.03026553,179.06,178.98,27.03026553]
[1734897005067,27.03026553,179.07,179.0,27.03026553]
[1734897005269,27.03026553,179.06,178.98,27.03026553]
[1734897005585,27.03026553,179.06,178.95,8.22549]
[1734897005586,27.03026553,179.01,178.95,8.1]
[1734897005789,27.03026553,178.97,178.87,2.3779]
[1734897006088,27.03026553,178.95,178.87,2.3779]
[1734897006277,27.03026553,178.94,178.87,29.40816553]
[1734897006481,27.03026553,178.93,178.87,2.3779]
[1734897006688,4.19658013,179.06,178.92,54.06053106]
[1734897006869,4.19658013,179.06,179.04,27.03026553]
[1734897007067,12.09740436,179.07,179.02,27.03026553]
[1734897007392,8.33399914,179.09,179.02,27.03026553]
[1734897007966,13.9593,179.1,179.02,27.03026553]
[1734897008588,13.9593,179.1,178.98,27.03026553]
[1734897008589,27.03026553,179.07,178.98,27.03026553]
[1734897008790,27.03026553,179.09,179.0,27.03026553]
[1734897008995,27.03026553,179.09,179.02,27.03026553]
[1734897008996,20.0,179.06,179.02,27.03026553]
[1734897009568,27.03026553,179.13,179.04,27.03026553]
[1734897009773,22.6542,179.14,179.07,27.03026553]
[1734897009973,8.6983,179.14,179.08,27.03026553]
[1734897010393,2.5701,179.14,179.08,27.03026553]
[1734897011209,6.1282,179.18,179.12,27.03026553]
[1734897011373,27.03026553,179.17,179.1,27.03026553]
[1734897011793,27.03026553,179.17,179.09,27.03026553]
[1734897011973,27.03026553,179.16,179.09,27.03026553]
[1734897012297,27.03026553,179.17,179.09,27.03026553]
[1734897012675,27.03026553,179.17,179.1,27.03026553]
[1734897012873,20.0,179.14,179.11,27.03026553]
[1734897013079,20.0,179.14,179.09,27.03026553]
[1734897013289,20.0,179.14,179.08,27.03026553]
[1734897013290,20.0,179.13,179.08,27.03026553]
[1734897013486,20.0,179.14,179.06,27.03026553]
[1734897013487,20.0,179.11,179.06,27.03026553]
[1734897013798,20.0,179.11,179.03,27.03026553]
[1734897013799,47.03026553,179.11,179.03,27.03026553]
[1734897013999,20.0,179.09,179.04,27.03026553]
[1734897014191,20.0,179.09,179.06,27.03026553]
[1734897014988,27.03026553,179.07,178.99,27.03026553]
[1734897015193,27.03026553,179.06,178.98,35.13026553]
[1734897015376,27.03026553,179.04,178.97,27.03026553]
[1734897016498,47.03026553,179.05,178.98,27.03026553]
[1734897017178,20.0,179.05,179.0,27.03026553]
[1734897017593,20.0,179.05,178.99,27.03026553]
[1734897018402,20.0,179.05,179.0,27.03026553]
[1734897018608,2.5641,179.09,179.02,27.03026553]
[1734897018902,20.0,179.08,179.02,27.03026553]
[1734897019084,2.5641,179.09,179.02,27.03026553]
[1734897019491,29.59436553,179.09,179.02,27.03026553]
[1734897019980,20.0,179.08,179.04,27.03026553]
[1734897020185,40.98826553,179.11,179.04,27.03026553]
[1734897021412,2.5641,179.13,179.06,27.03026553]
[1734897021578,33.27526553,179.16,179.09,27.03026553]
[1734897021775,6.245,179.16,179.1,27.03026553]
[1734897021998,33.27526553,179.16,179.09,27.03026553]
[1734897022802,27.03026553,179.19,179.12,27.03026553]
[1734897023114,27.03026553,179.23,179.16,27.03026553]
[1734897023453,27.03026553,179.19,179.12,27.03026553]
[1734897023582,27.03026553,179.18,179.11,27.15575553]
[1734897023907,27.03026553,179.18,179.11,27.03026553]
[1734897024117,27.03026553,179.17,179.09,27.03026553]
[1734897024282,43.81831044,179.16,179.09,43.81831044]
[1734897024692,43.81831044,179.17,179.09,43.81831044]
[1734897024889,43.81831044,179.17,179.1,43.81831044]
[1734897025090,43.81831044,179.16,179.09,43.81831044]
[1734897025291,43.81831044,179.16,179.08,43.81831044]
[1734897025601,43.81831044,179.16,179.09,43.81831044]
[1734897025794,43.81831044,179.17,179.09,43.81831044]
[1734897026522,43.81831044,179.17,179.1,43.81831044]
[1734897027087,43.81831044,179.17,179.09,43.81831044]
[1734897027305,43.81831044,179.17,179.04,6.3192]
[1734897027306,43.81831044,179.14,179.07,43.81831044]
[1734897027615,20.0,179.12,179.07,43.81831044]
[1734897027808,6.5738,179.16,179.04,6.3192]
[1734897027809,20.0,179.1,179.04,43.81831044]
[1734897028010,20.0,179.08,179.04,43.81831044]
[1734897028437,20.0,179.08,179.03,43.81831044]
[1734897028605,20.0,179.08,179.04,43.81831044]
[1734897029146,20.0,179.08,179.03,43.81831044]
[1734897029309,43.81831044,179.09,179.02,43.81831044]
[1734897030746,63.81831044,179.1,179.03,43.81831044]
[1734897031042,63.81831044,179.1,179.06,43.81831044]
[1734897031043,20.0,179.1,179.06,43.81831044]
[1734897031244,43.81831044,179.13,179.06,43.81831044]
[1734897031450,43.81831044,179.15,179.08,43.81831044]
[1734897031639,20.0,179.12,179.07,43.81831044]
[1734897033114,43.81831044,179.15,179.07,43.81831044]
[1734897033620,20.0,179.12,179.07,43.81831044]
[1734897034138,20.0,179.12,179.08,43.81831044]
[1734897034841,63.81831044,179.12,179.05,43.81831044]
[1734897035019,43.81831044,179.11,179.04,43.81831044]
[1734897035818,20.0,179.11,179.05,43.81831044]
[1734897036017,20.0,179.11,179.04,43.81831044]
[1734897036217,20.0,179.09,179.03,43.81831044]
[1734897036527,20.0,179.05,179.0,43.81831044]
[1734897037240,20.0,179.05,179.01,43.81831044]
[1734897037435,20.0,179.06,179.02,43.81831044]
[1734897037642,43.81831044,179.12,179.05,43.81831044]
[1734897037822,60.35531044,179.13,179.06,43.81831044]
[1734897038022,2.5803,179.13,179.08,43.81831044]
[1734897038232,43.81831044,179.12,179.05,43.81831044]
[1734897038417,2.5803,179.13,179.04,43.81831044]
[1734897038619,43.81831044,179.11,179.04,43.81831044]
[1734897039144,43.81831044,179.12,179.05,43.81831044]
[1734897039319,20.0,179.09,179.04,43.81831044]
[1734897039519,63.81831044,179.11,179.04,43.81831044]
[1734897040142,63.81831044,179.11,179.03,43.81831044]
[1734897040315,43.81831044,179.08,179.01,51.91831044]
[1734897040720,20.0,179.12,178.98,43.81831044]
[1734897040721,43.81831044,179.06,178.98,43.81831044]
[1734897040915,43.81831044,179.04,178.97,43.81831044]
[1734897042042,6.5738,179.07,178.94,10.5583]
[1734897042043,20.0,179.02,178.98,43.81831044]
[1734897042443,20.0,179.02,178.95,43.81831044]
[1734897042627,20.0,179.02,178.97,43.81831044]
[1734897042828,20.0,179.03,178.99,43.81831044]
[1734897043217,20.0,179.02,178.96,43.81831044]
[1734897043421,43.81831044,178.99,178.92,43.81831044]
[1734897043719,20.0,178.94,178.89,43.81831044]
[1734897043917,20.0,178.94,178.85,8.1]
[1734897044113,63.81831044,178.94,178.87,43.81831044]
[1734897044316,20.0,178.9,178.85,43.81831044]
[1734897044751,20.0,178.88,178.84,43.81831044]
[1734897044940,20.0,178.87,178.83,43.81831044]
[1734897045323,20.0,178.85,178.8,43.81831044]
[1734897045643,43.81831044,178.85,178.78,44.48764244]
[1734897045815,63.81831044,178.87,178.81,43.81831044]
[1734897046020,43.81831044,178.9,178.83,43.81831044]
[1734897046229,22.4193,178.94,178.84,0.12549]
[1734897046437,22.4193,178.94,178.83,8.1]
[1734897046640,22.4193,178.94,178.84,0.12549]
[1734897046821,20.0,178.94,178.84,8.22549]
[1734897047222,43.81831044,178.98,178.91,43.81831044]
[1734897047435,43.81831044,178.97,178.9,43.81831044]
[1734897047640,46.23761044,178.99,178.91,43.81831044]
[1734897047822,43.81831044,178.98,178.91,43.81831044]
[1734897048024,46.23761044,178.99,178.92,43.81831044]
[1734897048223,2.4193,178.99,178.92,43.81831044]
[1734897048521,43.81831044,179.01,178.94,43.81831044]
[1734897049140,20.0,178.98,178.93,43.81831044]
[1734897050219,20.0,178.98,178.92,43.81831044]
[1734897050538,20.0,178.99,178.93,43.81831044]
[1734897050720,6.0059,179.02,178.96,43.81831044]
[1734897050921,6.0059,179.02,178.95,43.81831044]
[1734897051320,6.0059,179.02,178.96,43.81831044]
[1734897051725,43.81831044,179.05,178.98,43.81831044]
[1734897051938,49.82421044,179.06,178.98,43.81831044]
[1734897052847,43.81831044,179.05,178.98,43.81831044]
[1734897053214,43.81831044,179.05,178.97,43.81831044]
[1734897053421,43.81831044,179.02,178.95,43.81831044]
[1734897053620,43.81831044,179.04,178.96,43.81831044]
[1734897053928,43.81831044,179.03,178.96,43.81831044]
[1734897055421,43.81831044,179.04,178.96,43.81831044]
[1734897055623,20.0,179.01,178.96,43.81831044]
[1734897057645,57.78081044,179.05,178.97,43.81831044]
[1734897057847,57.78081044,179.05,178.94,8.22549]
[1734897057848,20.0,179.02,178.98,43.81831044]
[1734897058236,6.0059,179.06,179.0,43.81831044]
[1734897058434,43.81831044,179.05,178.98,43.81831044]
[1734897058749,43.81831044,178.99,178.9,43.81831044]
[1734897059045,43.81831044,178.96,178.88,0.12549]
[1734897059344,43.81831044,178.99,178.92,43.81831044]
[1734897059551,46.35451044,179.0,178.92,43.81831044]
[1734897060062,43.81831044,178.97,178.9,43.81831044]
[1734897060429,43.81831044,178.98,178.91,43.81831044]
[1734897060624,20.0,178.94,178.89,43.81831044]
[1734897060830,43.81831044,178.91,178.82,10.4475]
[1734897061038,43.81831044,178.91,178.83,43.81831044]
[1734897061636,43.81831044,178.91,178.84,43.81831044]
[1734897063054,20.0,178.93,178.88,43.81831044]
[1734897063264,20.0,178.93,178.87,43.81831044]
[1734897063628,20.0,178.93,178.88,43.81831044]
[1734897063927,20.0,178.94,178.89,43.81831044]
[1734897064259,57.78711044,178.97,178.89,43.81831044]
[1734897064547,43.81831044,178.99,178.91,43.81831044]
[1734897064727,43.81831044,178.96,178.89,43.81831044]
[1734897066547,20.0,178.97,178.9,43.81831044]
[1734897066745,20.0,178.97,178.91,43.81831044]
[1734897067052,43.81831044,178.95,178.87,43.81831044]
[1734897067757,43.81831044,178.94,178.87,43.81831044]
[1734897068233,43.81831044,178.92,178.85,43.81831044]
[1734897068730,63.81831044,178.96,178.89,43.81831044]
[1734897068936,20.0,178.96,178.89,43.81831044]
[1734897069153,63.81831044,178.96,178.89,43.81831044]
[1734897069352,43.81831044,178.98,178.91,43.81831044]
[1734897069542,50.21551044,179.0,178.93,43.81831044]
[1734897069854,43.81831044,179.03,178.96,43.81831044]
[1734897070028,43.81831044,179.04,178.97,43.81831044]
[1734897070226,43.81831044,179.03,178.95,43.81831044]
[1734897070425,43.81831044,179.02,178.95,43.81831044]
[1734897070653,43.81831044,179.02,178.94,43.81831044]
[1734897071437,43.81831044,178.99,178.92,43.81831044]
[1734897073355,43.81831044,179.0,178.93,43.81831044]
[1734897073532,63.81831044,179.01,178.93,43.81831044]
[1734897073953,63.81831044,179.01,178.94,43.81831044]
[1734897075062,63.81831044,179.01,178.93,43.81831044]
[1734897075358,43.81831044,178.94,178.86,43.81831044]
[1734897075560,43.81831044,178.92,178.85,43.81831044]
[1734897076758,46.38481044,178.95,178.86,43.81831044]
[1734897076963,20.0,178.93,178.88,43.81831044]
[1734897077669,20.0,178.93,178.87,43.81831044]
[1734897077959,20.0,178.93,178.86,43.81831044]
[1734897078934,20.0,178.91,178.86,43.81831044]
[1734897079140,49.86021044,178.96,178.88,43.81831044]
[1734897079358,43.81831044,178.97,178.9,43.81831044]
[1734897079663,43.81831044,178.97,178.83,66.73657606]
[1734897079664,6.0419,179.01,178.95,43.81831044]
[1734897082266,49.86021044,179.01,178.94,43.81831044]
[1734897082470,57.78471044,179.0,178.93,43.81831044]
[1734897082843,13.9664,179.0,178.93,43.81831044]
[1734897083038,20.0,179.0,178.95,43.81831044]
[1734897083369,20.0,178.99,178.95,43.81831044]
[1734897084865,20.0,179.0,178.95,43.81831044]
[1734897085255,20.0,179.0,178.94,43.81831044]
[1734897085762,20.0,179.0,178.93,43.81831044]
[1734897086175,20.0,178.98,178.92,27.01471708]
[1734897086352,20.0,178.96,178.91,27.01471708]
[1734897086541,47.01471708,178.97,178.9,27.01471708]
[1734897086745,20.0,178.96,178.9,27.01471708]
[1734897086947,20.0,178.96,178.92,27.01471708]
[1734897087146,40.97971708,179.02,178.94,27.01471708]
[1734897087365,13.965,179.02,178.95,27.01471708]
[1734897087670,20.0046,179.05,178.98,27.01471708]
[1734897087857,27.01471708,179.04,178.97,27.01471708]
[1734897088448,47.01931708,179.05,178.98,27.01471708]
[1734897088967,27.01471708,179.04,178.96,27.01471708]
[1734897089269,20.0,179.01,178.96,27.01471708]
[1734897089478,20.0,179.01,178.95,27.01471708]
[1734897089668,27.01471708,178.99,178.92,27.01471708]
[1734897089853,20.0,179.01,178.9,35.11471708]
[1734897089854,27.01471708,178.98,178.9,35.11471708]
[1734897090254,47.01471708,178.97,178.9,35.11471708]
[1734897090565,27.01471708,178.94,178.87,27.01471708]
[1734897090770,27.01471708,178.94,178.86,27.01471708]
[1734897090955,27.01471708,178.93,178.85,27.01471708]
[1734897091474,27.01471708,178.93,178.86,27.01471708]
[1734897091671,27.01471708,178.91,178.84,27.01471708]
[1734897092277,43.94187582,178.94,178.86,43.94187582]
[1734897092578,43.94187582,178.95,178.87,43.94187582]
[1734897092873,63.94187582,178.93,178.86,43.94187582]
[1734897093047,20.0,178.92,178.86,43.94187582]
[1734897094572,20.0,178.88,178.82,43.94187582]
[1734897094755,63.94187582,178.88,178.81,43.94187582]
[1734897094954,43.94187582,178.87,178.79,43.94187582]
[1734897095150,43.94187582,178.85,178.78,0.669332]
[1734897095373,20.0,178.88,178.78,0.669332]
[1734897095374,43.94187582,178.84,178.78,0.669332]
[1734897095575,43.94187582,178.85,178.78,44.61120782]
[1734897095755,43.94187582,178.85,178.78,0.669332]
[1734897096087,43.94187582,178.83,178.78,0.669332]
[1734897096255,43.94187582,178.85,178.78,44.61120782]
[1734897096452,20.0,178.88,178.83,43.94187582]
[1734897097164,2.5858,178.93,178.86,43.94187582]
[1734897097165,46.52767582,178.93,178.86,43.94187582]
[1734897097364,43.94187582,178.94,178.86,43.94187582]
[1734897097694,50.12107582,178.95,178.87,43.94187582]
[1734897097864,43.94187582,178.94,178.87,43.94187582]
[1734897098068,50.12107582,178.95,178.88,43.94187582]
[1734897098388,43.94187582,178.95,178.88,43.94187582]
[1734897098596,16.5553,178.97,178.87,43.94187582]
[1734897098597,43.94187582,178.94,178.87,43.94187582]
[1734897100008,43.94187582,178.94,178.86,43.94187582]
[1734897100302,43.94187582,178.94,178.87,43.94187582]
[1734897100578,43.94187582,178.99,178.92,43.94187582]
[1734897100776,46.41837582,179.01,178.93,43.94187582]
[1734897100959,46.41837582,179.01,178.94,43.94187582]
[1734897101166,46.41837582,179.01,178.93,43.94187582]
[1734897101477,43.94187582,179.0,178.93,43.94187582]
[1734897102177,43.94187582,178.97,178.89,8.1]
[1734897102375,43.94187582,179.0,178.93,43.94187582]
[1734897102562,46.41837582,179.01,178.93,43.94187582]
[1734897102766,20.0,178.98,178.93,43.94187582]
[1734897103072,6.6355,179.04,178.89,8.1]
[1734897103073,43.94187582,179.03,178.96,43.94187582]
[1734897103275,6.6355,179.04,178.88,22.81071797]
[1734897103485,43.94187582,178.99,178.91,43.94187582]
[1734897103873,43.94187582,178.99,178.92,43.94187582]
[1734897104059,6.6355,179.04,178.9,43.94187582]
[1734897104060,43.94187582,178.98,178.9,43.94187582]
[1734897104461,43.94187582,178.97,178.9,43.94187582]
[1734897104665,43.94187582,178.98,178.91,43.94187582]
[1734897104865,43.94187582,178.99,178.91,43.94187582]
[1734897105067,43.94187582,178.98,178.9,43.94187582]
[1734897105689,13.9641,179.03,178.88,8.8346]
[1734897105690,20.0,178.95,178.89,43.94187582]
[1734897105897,43.94187582,178.95,178.87,43.94187582]
[1734897106263,43.94187582,178.95,178.88,43.94187582]
[1734897106458,43.94187582,178.95,178.85,0.12549]
[1734897106459,20.0,178.95,178.89,43.94187582]
[1734897106691,43.94187582,178.97,178.9,43.94187582]
[1734897106864,63.94187582,178.98,178.9,43.94187582]
[1734897107064,63.94187582,178.98,178.91,43.94187582]
[1734897107286,20.0,178.98,178.91,43.94187582]
[1734897107491,20.0,178.96,178.91,43.94187582]
[1734897108104,63.94187582,178.98,178.91,43.94187582]
[1734897108274,13.9659,179.01,178.89,43.94187582]
[1734897108275,63.94187582,178.96,178.89,43.94187582]
[1734897108460,63.94187582,178.96,178.84,22.0783]
[1734897108461,20.0,178.96,178.9,43.94187582]
[1734897111209,27.9282,179.03,178.9,43.94187582]
[1734897111364,13.9641,179.03,178.94,43.94187582]
[1734897111569,13.9641,179.03,178.86,14.81570188]
[1734897111570,43.94187582,179.0,178.93,43.94187582]
[1734897111869,43.94187582,178.96,178.89,43.94187582]
[1734897112073,43.94187582,178.95,178.88,43.94187582]
[1734897112289,43.94187582,178.96,178.88,43.94187582]
[1734897112459,43.94187582,178.95,178.88,43.94187582]
[1734897112660,43.94187582,178.95,178.87,43.94187582]
[1734897112990,43.94187582,178.93,178.87,43.94187582]
[1734897113186,43.94187582,178.95,178.87,43.94187582]
[1734897113509,43.94187582,178.91,178.83,43.94187582]
[1734897114063,43.94187582,178.93,178.85,43.94187582]
[1734897114262,43.94187582,178.93,178.87,43.94187582]
[1734897114485,20.0,178.92,178.87,43.94187582]
[1734897115203,43.94187582,178.95,178.88,43.94187582]
[1734897116026,20.0,178.94,178.88,43.94187582]
[1734897116303,43.94187582,178.96,178.88,43.94187582]
[1734897118715,20.0,178.95,178.9,43.94187582]
[1734897120021,20.0,178.95,178.88,43.94187582]
[1734897120510,2.5289,178.97,178.86,43.94187582]
[1734897120511,20.0,178.93,178.86,43.94187582]
[1734897120899,43.94187582,178.92,178.86,43.94187582]
[1734897121613,43.94187582,178.96,178.84,0.12549]
[1734897121798,43.94187582,178.96,178.89,43.94187582]
[1734897121799,20.0,178.94,178.89,43.94187582]